bitfinex-derivatives/quotes_BTCF0:USTF0_20250501
["timestamp","ask_amount","ask_price","bid_price","bid_amount"]
[1746087487127,1.31383415,95166.0,95165.0,1.2493297]
[1746087487937,1.34493415,95166.0,95165.0,1.2493297]
[1746087488131,1.91014165,95166.0,95165.0,1.2167297]
[1746087488332,1.55506165,95166.0,95165.0,1.2167297]
[1746087488740,1.34493415,95166.0,95165.0,1.2167297]
[1746087488941,1.55506165,95166.0,95165.0,1.2167297]
[1746087489139,1.34497415,95166.0,95165.0,1.2167297]
[1746087490037,0.18834,95166.0,95165.0,1.2788297]
[1746087495049,0.1572,95166.0,95165.0,1.2788297]
[1746087495238,0.15724,95166.0,95165.0,1.2788297]
[1746087495834,0.15724,95166.0,95165.0,1.28956519]
[1746087497451,0.21019502,95180.0,95179.0,0.2100988]
[1746087497639,0.21019502,95180.0,95179.0,0.7408988]
[1746087497834,1.36673075,95180.0,95179.0,0.7408988]
[1746087498050,1.36677075,95180.0,95179.0,0.7408988]
[1746087498247,1.4967684,95180.0,95179.0,0.7408988]
[1746087498448,1.48877075,95180.0,95179.0,0.7408988]
[1746087498749,1.49277075,95180.0,95179.0,0.7408988]
[1746087499148,1.49577075,95180.0,95179.0,0.7408988]
[1746087499448,1.52757075,95180.0,95179.0,0.7408988]
[1746087500348,0.3709366,95180.0,95179.0,0.7408988]
[1746087500644,1.52757075,95180.0,95179.0,0.7408988]
[1746087501753,1.53548721,95180.0,95179.0,0.7408988]
[1746087502251,1.52757075,95180.0,95179.0,0.7408988]
[1746087506857,1.53532751,95180.0,95179.0,0.7408988]
[1746087508648,1.53332751,95180.0,95179.0,0.7408988]
[1746087509257,1.53032751,95180.0,95179.0,0.7408988]
[1746087509457,1.53232751,95180.0,95179.0,0.7408988]
[1746087514257,1.53232751,95180.0,95179.0,0.5308]
[1746087514464,1.53232751,95180.0,95179.0,0.7408988]
[1746087514656,1.53232751,95180.0,95179.0,0.5308]
[1746087514856,1.53232751,95180.0,95179.0,0.7408988]
[1746087519671,1.53232751,95180.0,95179.0,0.5308]
[1746087520367,1.53232751,95180.0,95179.0,0.7408988]
[1746087521072,1.53232751,95180.0,95179.0,0.5308]
[1746087522773,1.53232751,95180.0,95179.0,0.7408988]
[1746087523072,1.53232751,95180.0,95179.0,0.7733988]
[1746087525575,1.53232751,95180.0,95179.0,0.5633]
[1746087525773,1.53232751,95180.0,95179.0,0.7733988]
[1746087529075,1.50052751,95180.0,95179.0,0.7733988]
[1746087529272,1.50048751,95180.0,95179.0,0.8052988]
[1746087530779,1.50048751,95180.0,95179.0,0.5952]
[1746087530979,1.50048751,95180.0,95179.0,0.8052988]
[1746087531179,1.53078751,95180.0,95179.0,0.5952]
[1746087532581,0.2101076,95175.0,95170.0,0.08145538]
[1746087532777,1.36674175,95175.0,95172.0,0.0629]
[1746087532979,1.36674175,95175.0,95172.0,0.2730123]
[1746087533167,1.48874175,95175.0,95172.0,0.0629]
[1746087533375,1.55114175,95175.0,95174.0,0.43244]
[1746087534679,1.55114175,95175.0,95174.0,0.6425498]
[1746087535276,1.55214175,95175.0,95174.0,0.43244]
[1746087535480,1.55314175,95175.0,95174.0,0.43244]
[1746087536081,1.55314175,95175.0,95174.0,0.6739498]
[1746087537675,1.55314175,95175.0,95174.0,0.46384]
[1746087540478,1.55314175,95175.0,95174.0,0.0314]
[1746087540681,0.2101253,95167.0,95166.0,0.2716275]
[1746087540881,0.2101253,95167.0,95166.0,0.2816275]
[1746087541378,0.3321253,95167.0,95166.0,0.2816275]
[1746087541980,0.34263599,95167.0,95166.0,0.2816275]
[1746087542180,0.34263599,95167.0,95166.0,0.2826275]
[1746087542484,0.34263599,95167.0,95166.0,0.2836275]
[1746087543782,0.34263599,95167.0,95166.0,0.3146275]
[1746087544081,0.122,95167.0,95166.0,0.3146275]
[1746087544283,0.2101253,95167.0,95166.0,0.3146275]
[1746087544483,0.2101653,95167.0,95166.0,0.3146275]
[1746087544979,1.36679945,95167.0,95166.0,0.2836275]
[1746087545179,1.49928542,95167.0,95166.0,0.16625739]
[1746087546180,1.53248542,95167.0,95166.0,0.16625739]
[1746087549376,1.52199945,95167.0,95166.0,0.19805739]
[1746087552175,1.53236164,95167.0,95166.0,0.19805739]
[1746087554586,1.53236164,95167.0,95166.0,0.16625739]
[1746087554787,1.56326164,95167.0,95166.0,0.16625739]
[1746087556288,1.56326164,95167.0,95166.0,0.02]
[1746087556496,0.2101341,95163.0,95162.0,0.16024652]
[1746087556791,1.36676825,95163.0,95162.0,0.41038282]
[1746087557183,1.48876825,95163.0,95162.0,0.20024652]
[1746087557383,1.55096825,95163.0,95162.0,0.20024652]
[1746087557784,1.55096825,95163.0,95162.0,0.042]
[1746087558184,1.55096825,95163.0,95162.0,0.043]
[1746087561700,1.97648825,95163.0,95162.0,0.043]
[1746087562498,1.97648825,95163.0,95162.0,0.042]
[1746087562803,0.2101584,95152.0,95151.0,0.0328]
[1746087562990,1.36679255,95152.0,95151.0,0.0828]
[1746087563191,0.3321584,95152.0,95151.0,0.0828]
[1746087563391,1.48879255,95152.0,95151.0,0.0828]
[1746087563693,0.2101651,95149.0,95148.0,0.16024652]
[1746087563999,1.36679925,95149.0,95148.0,0.16024652]
[1746087564199,1.48879925,95149.0,95148.0,0.16024652]
[1746087564600,1.55089925,95149.0,95148.0,0.16024652]
[1746087565491,1.55089925,95149.0,95148.0,0.16424652]
[1746087565687,1.55089925,95149.0,95148.0,0.16624652]
[1746087566700,0.00386711,96318.0,95148.0,0.16624652]
[1746087566701,0.08024348,95165.0,95158.0,0.0525361]
[1746087566902,0.2101483,95160.0,95159.0,0.2737323]
[1746087567099,0.3321483,95160.0,95159.0,0.5655323]
[1746087570299,0.3321483,95160.0,95159.0,0.5665323]
[1746087570803,0.122,95160.0,95159.0,0.5665323]
[1746087570990,0.12204,95160.0,95159.0,0.5675323]
[1746087571195,4e-05,95160.0,95159.0,0.5675323]
[1746087571591,4e-05,95160.0,95159.0,0.5695323]
[1746087572199,0.12204,95160.0,95159.0,0.5695323]
[1746087572592,0.12204,95160.0,95159.0,2.0695323]
[1746087573611,0.3321808,95160.0,95159.0,2.0695323]
[1746087574417,5.401e-05,95166.0,95165.0,0.2101297]
[1746087574603,0.21019251,95171.0,95170.0,0.2101187]
[1746087574915,0.2101196,95171.0,95170.0,0.4901187]
[1746087575113,0.2101596,95171.0,95170.0,0.4901187]
[1746087575414,0.3321596,95171.0,95170.0,0.5222187]
[1746087579319,0.12204,95171.0,95170.0,0.5222187]
[1746087579520,0.3321565,95171.0,95170.0,0.5222187]
[1746087588322,0.3321565,95171.0,95170.0,0.8830187]
[1746087588523,0.3631565,95171.0,95170.0,0.8830187]
[1746087589823,0.3631565,95171.0,95170.0,0.8509187]
[1746087591123,1.51979065,95171.0,95170.0,0.8509187]
[1746087604249,1.51975065,95171.0,95170.0,0.8509187]
[1746087604852,1.55145065,95171.0,95170.0,0.8509187]
[1746087607943,1.55145065,95171.0,95170.0,0.8822187]
[1746087608939,1.34133415,95171.0,95170.0,0.8822187]
[1746087609150,0.1537,95171.0,95170.0,0.9445187]
[1746087609345,0.15374,95171.0,95170.0,0.9445187]
[1746087609544,0.12204,95171.0,95170.0,0.9445187]
[1746087610143,4e-05,95171.0,95170.0,0.9445187]
[1746087611051,0.12204,95171.0,95170.0,0.9445187]
[1746087612254,4e-05,95171.0,95170.0,0.9445187]
[1746087613147,0.12204,95171.0,95170.0,0.9445187]
[1746087613856,0.12204,95171.0,95170.0,0.95480902]
[1746087614247,0.12204,95171.0,95170.0,1.3603187]
[1746087614954,0.0525197,95188.0,95179.0,0.2100988]
[1746087615164,5.401e-05,95180.0,95179.0,1.3686988]
[1746087615464,0.2115891,95185.0,95184.0,0.2100878]
[1746087615661,0.2115891,95185.0,95184.0,0.4100878]
[1746087615861,1.36822325,95185.0,95184.0,0.4100878]
[1746087616066,1.36822325,95185.0,95184.0,0.4732878]
[1746087616261,1.49022325,95185.0,95184.0,0.4732878]
[1746087616664,1.49322325,95185.0,95184.0,0.4732878]
[1746087617263,1.29092725,95185.0,95184.0,0.4732878]
[1746087617663,1.29296725,95185.0,95184.0,0.4732878]
[1746087617960,1.50305285,95185.0,95184.0,0.4732878]
[1746087618563,1.29296725,95185.0,95184.0,0.4732878]
[1746087621161,0.1363331,95185.0,95184.0,0.4732878]
[1746087621363,0.1362931,95185.0,95184.0,0.4732878]
[1746087621562,0.1363331,95185.0,95184.0,0.4732878]
[1746087623164,0.1666331,95185.0,95184.0,0.4732878]
[1746087623551,0.1984331,95185.0,95184.0,0.4732878]
[1746087623967,0.4085187,95185.0,95184.0,0.4732878]
[1746087626163,0.4085187,95185.0,95184.0,0.8890878]
[1746087627055,0.4085187,95185.0,95184.0,1.2498878]
[1746087628654,0.4085187,95185.0,95184.0,1.2183878]
[1746087632760,0.4085187,95185.0,95184.0,0.8575878]
[1746087632969,0.4085187,95185.0,95184.0,1.2183878]
[1746087638757,0.4085187,95185.0,95184.0,0.8575878]
[1746087638965,0.4085187,95185.0,95184.0,1.2183878]
[1746087639363,1.56515285,95185.0,95184.0,0.9766]
[1746087639668,1.56515285,95185.0,95180.0,0.3608]
[1746087639669,0.2101054,95176.0,95175.0,0.16028037]
[1746087639862,1.36673955,95176.0,95175.0,0.17028037]
[1746087640063,1.36673955,95176.0,95175.0,0.2101076]
[1746087640362,1.48873955,95176.0,95175.0,0.2101076]
[1746087640760,1.55153955,95176.0,95175.0,0.2101076]
[1746087640957,0.2101098,95174.0,95173.0,0.2626386]
[1746087641157,1.36674395,95174.0,95173.0,0.2626386]
[1746087642069,1.36674395,95174.0,95173.0,0.2101107]
[1746087642270,0.2101121,95173.0,95172.0,0.21432071]
[1746087642475,1.42954625,95173.0,95172.0,0.21432071]
[1746087642675,1.42954625,95173.0,95172.0,0.42443501]
[1746087643375,1.55154625,95173.0,95172.0,0.42443501]
[1746087643968,1.55154625,95173.0,95172.0,0.2101143]
[1746087646276,0.2626532,95170.0,95169.0,0.2101193]
[1746087646476,1.36675725,95168.0,95167.0,0.3608]
[1746087646676,1.36675725,95168.0,95167.0,0.5508]
[1746087646879,1.36675725,95168.0,95167.0,0.7609253]
[1746087647066,1.58655725,95168.0,95167.0,0.7609253]
[1746087647775,1.58655725,95168.0,95167.0,0.5518]
[1746087649872,1.59699975,95168.0,95167.0,0.5528]
[1746087655878,1.59699975,95168.0,95167.0,0.7629253]
[1746087662193,1.59699975,95168.0,95167.0,0.4021253]
[1746087664487,1.59699975,95168.0,95167.0,0.192]
[1746087664686,1.59699975,95168.0,95167.0,0.4021253]
[1746087669698,1.58655725,95168.0,95167.0,0.4021253]
[1746087670301,0.122,95168.0,95167.0,0.4021253]
[1746087671012,0.122,95168.0,95167.0,1.9339253]
[1746087671397,0.122,95168.0,95167.0,1.9665253]
[1746087671597,0.12204,95168.0,95167.0,1.9665253]
[1746087671808,0.21017681,95177.0,95172.0,0.2101143]
[1746087671992,0.2101039,95177.0,95176.0,0.5709054]
[1746087672197,0.3321039,95177.0,95176.0,0.8209054]
[1746087673902,0.3321039,95177.0,95176.0,0.8541054]
[1746087674107,0.2111039,95177.0,95176.0,0.8541054]
[1746087674507,0.2121039,95177.0,95176.0,0.8541054]
[1746087676404,1.36873805,95177.0,95176.0,0.8541054]
[1746087676608,1.43113805,95177.0,95176.0,0.8541054]
[1746087676808,1.46373805,95177.0,95176.0,0.8541054]
[1746087677309,1.58573805,95177.0,95176.0,0.8541054]
[1746087679112,1.58573805,95177.0,95176.0,0.4933054]
[1746087679297,1.58573805,95177.0,95176.0,0.8541054]
[1746087681014,1.58573805,95177.0,95176.0,0.4933054]
[1746087681211,1.58573805,95177.0,95176.0,0.8541054]
[1746087682203,1.46373805,95177.0,95176.0,0.8541054]
[1746087683016,1.46373805,95177.0,95176.0,0.4933054]
[1746087683223,1.58573805,95177.0,95176.0,0.8541054]
[1746087684106,1.58573805,95177.0,95176.0,0.2832]
[1746087685214,1.58573805,95177.0,95176.0,0.4933054]
[1746087685815,0.124,95177.0,95176.0,0.8541054]
[1746087686115,0.00936601,95185.0,95184.0,0.2100878]
[1746087686314,0.00936601,95185.0,95184.0,0.8308878]
[1746087686707,0.00936601,95185.0,95176.0,0.122]
[1746087686708,0.2101032,95177.0,95176.0,0.122]
[1746087686908,1.36673735,95177.0,95176.0,0.3321054]
[1746087687111,1.36677735,95177.0,95176.0,0.122]
[1746087687414,0.2101054,95176.0,95175.0,0.2423063]
[1746087687610,1.42873955,95176.0,95175.0,0.4023063]
[1746087688204,1.55073955,95176.0,95175.0,0.1922]
[1746087688814,1.55173955,95176.0,95175.0,0.1922]
[1746087689117,1.55273955,95176.0,95175.0,0.1922]
[1746087689917,1.55273955,95176.0,95170.0,0.4158]
[1746087689918,0.2101165,95171.0,95170.0,0.4158]
[1746087690109,1.36675065,95171.0,95170.0,0.4158]
[1746087690620,0.2101187,95170.0,95169.0,0.21432071]
[1746087690920,1.43055285,95170.0,95169.0,0.21432071]
[1746087691306,1.55255285,95170.0,95169.0,0.21432071]
[1746087691810,1.55255285,95170.0,95169.0,0.21532071]
[1746087692521,0.122,95170.0,95169.0,0.61544161]
[1746087692826,0.3321187,95170.0,95169.0,0.61544161]
[1746087693124,0.2101587,95170.0,95169.0,0.61544161]
[1746087693418,0.2101587,95170.0,95169.0,0.67674161]
[1746087693625,0.2101587,95170.0,95169.0,0.4624209]
[1746087695224,0.3321587,95170.0,95169.0,0.4624209]
[1746087695729,0.12204,95170.0,95169.0,0.4624209]
[1746087695916,0.122,95170.0,95169.0,0.4624209]
[1746087696225,4e-05,95170.0,95169.0,0.4624209]
[1746087696427,0.2100975,95180.0,95179.0,0.2100966]
[1746087696627,0.21017041,95180.0,95179.0,0.7508966]
[1746087696833,0.2100975,95180.0,95179.0,0.7508966]
[1746087697021,0.2413375,95180.0,95179.0,0.8440966]
[1746087697619,0.2433375,95180.0,95179.0,0.8440966]
[1746087698422,0.2443375,95180.0,95179.0,0.8440966]
[1746087702344,0.2443375,95180.0,95179.0,0.7825966]
[1746087703421,0.2433375,95180.0,95179.0,0.7865966]
[1746087703622,0.2753375,95180.0,95179.0,0.7865966]
[1746087703823,0.2733375,95180.0,95179.0,0.7905966]
[1746087704526,5.401e-05,95184.0,95183.0,0.21009]
[1746087704716,5.401e-05,95184.0,95183.0,0.50009]
[1746087704922,0.0092931,95185.0,95184.0,0.2100878]
[1746087705117,0.2193787,95185.0,95184.0,0.6148878]
[1746087705318,0.2193787,95185.0,95184.0,0.6454878]
[1746087705829,0.0092931,95185.0,95184.0,0.6454878]
[1746087707132,0.0092931,95185.0,95184.0,0.6484878]
[1746087707335,0.2193787,95185.0,95184.0,0.6484878]
[1746087707631,0.2193787,95185.0,95184.0,0.6504878]
[1746087708224,0.2193787,95185.0,95184.0,0.5284878]
[1746087709324,0.2507787,95185.0,95184.0,0.5284878]
[1746087711132,0.2507787,95185.0,95184.0,0.6504878]
[1746087711332,0.2193787,95185.0,95184.0,0.6504878]
[1746087712232,0.2193787,95185.0,95184.0,0.5284878]
[1746087712434,0.2496787,95185.0,95184.0,0.5284878]
[1746087713520,0.0092931,95185.0,95184.0,0.5284878]
[1746087713731,0.2193787,95185.0,95184.0,0.5284878]
[1746087715227,0.2507787,95185.0,95184.0,0.5284878]
[1746087719734,0.2823787,95185.0,95184.0,0.5284878]
[1746087721435,0.2823787,95185.0,95184.0,0.4978878]
[1746087722333,0.0722931,95185.0,95184.0,0.4978878]
[1746087722531,0.2823787,95185.0,95184.0,0.4978878]
[1746087724141,0.2823787,95185.0,95184.0,0.6198878]
[1746087725139,0.2823787,95185.0,95184.0,0.4978878]
[1746087727537,1.43901285,95185.0,95184.0,0.4978878]
[1746087734346,0.0722931,95185.0,95184.0,0.4978878]
[1746087734549,0.2823787,95185.0,95184.0,0.4978878]
[1746087735747,1.43901285,95185.0,95184.0,0.4978878]
[1746087737158,1.43901285,95185.0,95184.0,0.8586878]
[1746087738860,1.43901285,95185.0,95184.0,1.01893171]
[1746087742346,1.43901285,95185.0,95184.0,0.8586878]
[1746087749157,1.43901285,95185.0,95184.0,0.9806878]
[1746087749758,1.43901285,95185.0,95184.0,1.1410387]
[1746087750354,1.43901285,95185.0,95184.0,1.0190387]
[1746087754560,1.43901285,95185.0,95184.0,0.8586878]
[1746087756850,1.43901285,95185.0,95184.0,0.8258878]
[1746087757256,1.56101285,95185.0,95184.0,0.8258878]
[1746087759155,1.43901285,95185.0,95184.0,0.8258878]
[1746087760058,1.56101285,95185.0,95184.0,0.8258878]
[1746087762355,1.56101285,95185.0,95184.0,0.8587878]
[1746087764167,1.43901285,95185.0,95184.0,0.8587878]
[1746087768269,1.43901285,95185.0,95184.0,0.4979878]
[1746087769370,1.22892725,95185.0,95184.0,0.8587878]
[1746087769663,0.2823787,95185.0,95184.0,0.8587878]
[1746087769878,0.2824187,95185.0,95184.0,0.8587878]
[1746087770260,0.2824187,95185.0,95184.0,0.9807878]
[1746087770467,0.0723331,95185.0,95184.0,0.9807878]
[1746087772061,0.2824187,95185.0,95184.0,0.9807878]
[1746087772574,0.0723331,95185.0,95184.0,0.9807878]
[1746087773262,0.2824187,95185.0,95184.0,0.9807878]
[1746087775077,0.2824187,95185.0,95184.0,1.0113878]
[1746087777080,0.2824187,95185.0,95184.0,0.8587878]
[1746087778381,0.2824187,95185.0,95184.0,1.01916377]
[1746087780282,1.43905285,95185.0,95184.0,1.01916377]
[1746087782679,1.22896725,95185.0,95184.0,1.01916377]
[1746087782868,1.43905285,95185.0,95184.0,1.01916377]
[1746087785268,1.43905285,95185.0,95184.0,1.14116377]
[1746087786171,1.43905285,95185.0,95184.0,1.01916377]
[1746087791077,1.43905285,95185.0,95184.0,1.14116377]
[1746087791677,1.43905285,95185.0,95184.0,0.9807878]
[1746087793185,1.43905285,95185.0,95184.0,0.8587878]
[1746087795786,1.43905285,95185.0,95184.0,0.4979878]
[1746087795976,1.43905285,95185.0,95184.0,0.8587878]
[1746087796179,1.43905285,95185.0,95184.0,0.9807878]
[1746087797285,1.43905285,95185.0,95184.0,0.8587878]
[1746087799293,1.43901285,95185.0,95184.0,0.8587878]
[1746087802393,1.43901285,95185.0,95184.0,0.6487]
[1746087802580,1.43901285,95185.0,95184.0,0.8587878]
[1746087804786,1.43901285,95185.0,95184.0,0.4979878]
[1746087805290,1.43901285,95185.0,95184.0,0.8587878]
[1746087810096,1.43901285,95185.0,95184.0,0.9807878]
[1746087811298,1.43901285,95185.0,95184.0,0.8587878]
[1746087814907,1.43901285,95185.0,95184.0,0.4979878]
[1746087815100,1.43901285,95185.0,95184.0,0.8587878]
[1746087818400,1.43901285,95185.0,95184.0,1.01916377]
[1746087820297,1.43901285,95185.0,95184.0,1.14116377]
[1746087821200,1.43901285,95185.0,95184.0,1.01916377]
[1746087822100,1.43901285,95185.0,95184.0,0.8587878]
[1746087823903,1.22892725,95185.0,95184.0,0.8587878]
[1746087824797,1.43901285,95185.0,95184.0,0.8587878]
[1746087830604,1.43901285,95185.0,95184.0,1.01916377]
[1746087835109,1.43901285,95185.0,95184.0,1.14116377]
[1746087836099,1.43901285,95185.0,95184.0,1.01916377]
[1746087836914,1.43901285,95185.0,95184.0,0.77617597]
[1746087837215,1.43901285,95185.0,95160.0,0.08145538]
[1746087837216,0.2101165,95171.0,95170.0,0.08145538]
[1746087837405,1.41928025,95171.0,95170.0,0.4001187]
[1746087838114,1.43135065,95171.0,95170.0,0.4001187]
[1746087838504,1.43139065,95171.0,95170.0,0.4001187]
[1746087838703,1.43139065,95171.0,95170.0,0.4648187]
[1746087839410,1.43139065,95171.0,95170.0,0.4377187]
[1746087839618,1.43139065,95171.0,95170.0,0.4427187]
[1746087840004,1.43139065,95171.0,95170.0,0.4407187]
[1746087840209,1.43139065,95171.0,95170.0,0.4387187]
[1746087841216,1.55339065,95171.0,95170.0,0.4387187]
[1746087842108,1.43139065,95171.0,95170.0,0.4387187]
[1746087844122,1.55339065,95171.0,95170.0,0.4387187]
[1746087845310,1.43139065,95171.0,95170.0,0.4387187]
[1746087846523,0.2747565,95171.0,95170.0,0.4387187]
[1746087850228,0.2747565,95171.0,95170.0,0.5607187]
[1746087862526,1.43139065,95171.0,95170.0,0.5607187]
[1746087864531,1.43139065,95171.0,95170.0,0.39326775]
[1746087869134,1.43135065,95171.0,95170.0,0.39326775]
[1746087873127,1.43135065,95171.0,95170.0,0.27126775]
[1746087874240,1.43135065,95171.0,95170.0,0.39326775]
[1746087879544,1.43135065,95171.0,95170.0,0.15054905]
[1746087879736,0.2101297,95165.0,95155.0,0.53756783]
[1746087880043,1.72756385,95165.0,95164.0,0.16157608]
[1746087881151,1.72756385,95165.0,95164.0,0.16957608]
[1746087881640,1.72756385,95165.0,95164.0,0.16857608]
[1746087882345,1.72756385,95165.0,95164.0,0.16557608]
[1746087882530,1.72756385,95165.0,95164.0,0.16657608]
[1746087882736,1.72756385,95165.0,95164.0,0.16457608]
[1746087883145,1.72756385,95165.0,95164.0,0.16257608]
[1746087883344,1.72856385,95165.0,95164.0,0.16257608]
[1746087884245,1.85056385,95165.0,95164.0,0.16257608]
[1746087885146,1.72856385,95165.0,95164.0,0.16257608]
[1746087893344,1.36776385,95165.0,95164.0,0.16257608]
[1746087893642,1.72856385,95165.0,95164.0,0.16257608]
[1746087894446,1.36776385,95165.0,95164.0,0.16257608]
[1746087894645,1.72856385,95165.0,95164.0,0.16257608]
[1746087899067,1.72856385,95165.0,95164.0,0.28457608]
[1746087900174,1.72856385,95165.0,95164.0,0.16257608]
[1746087901071,1.72856385,95165.0,95164.0,0.19267608]
[1746087902172,1.72856385,95165.0,95164.0,0.31467608]
[1746087902766,0.001,95165.0,95164.0,0.31467608]
[1746087902965,0.00104,95165.0,95164.0,0.55630798]
[1746087903472,0.001,95165.0,95164.0,0.55630798]
[1746087903672,0.00104,95165.0,95164.0,0.55630798]
[1746087903864,0.2111697,95165.0,95164.0,2.05630798]
[1746087904676,0.00104,95165.0,95164.0,2.05630798]
[1746087905473,0.2111697,95165.0,95164.0,2.05630798]
[1746087906472,0.00104,95165.0,95164.0,2.05630798]
[1746087906772,0.2111697,95165.0,95164.0,2.05630798]
[1746087907469,0.00104,95165.0,95164.0,2.05630798]
[1746087907774,0.2111697,95165.0,95164.0,2.05630798]
[1746087908973,0.00104,95165.0,95164.0,2.05630798]
[1746087909167,0.08953658,95185.0,95179.0,0.2100988]
[1746087909479,0.2100985,95180.0,95179.0,0.8108988]
[1746087909672,4e-05,95180.0,95179.0,0.8108988]
[1746087909872,0.2101366,95180.0,95179.0,0.8108988]
[1746087910074,0.2101366,95180.0,95179.0,0.9952988]
[1746087910275,0.2131366,95180.0,95179.0,2.4952988]
[1746087911377,0.2161366,95180.0,95179.0,2.4952988]
[1746087912179,0.2131366,95180.0,95179.0,2.4952988]
[1746087912368,0.2121366,95180.0,95179.0,2.4952988]
[1746087913180,0.2101366,95180.0,95179.0,2.5002988]
[1746087920084,0.2101366,95180.0,95179.0,2.1394988]
[1746087921880,0.2101366,95180.0,95179.0,2.1083988]
[1746087939201,0.2100966,95180.0,95179.0,2.1083988]
[1746087946108,0.2100966,95180.0,95179.0,1.9863988]
[1746087947106,0.2100966,95180.0,95179.0,2.1083988]
[1746087948110,0.2100966,95180.0,95179.0,1.9863988]
[1746087949108,0.2100966,95180.0,95179.0,2.1083988]
[1746087951208,0.2100966,95180.0,95179.0,1.9863988]
[1746087952319,0.2100966,95180.0,95179.0,2.1083988]
[1746087952613,0.2100966,95180.0,95179.0,0.6083988]
[1746087954107,0.3042942,95182.0,95181.0,0.2100944]
[1746087954302,0.0641,95182.0,95181.0,0.4900944]
[1746087954503,1.22073415,95182.0,95181.0,0.4900944]
[1746087954711,1.43082635,95182.0,95181.0,0.4900944]
[1746087954908,1.43082635,95182.0,95181.0,0.5535944]
[1746087955102,1.43082635,95182.0,95181.0,0.6755944]
[1746087955308,1.43082635,95182.0,95181.0,0.6785944]
[1746087956409,1.43082635,95182.0,95181.0,0.6477944]
[1746087960211,1.43082635,95182.0,95181.0,0.283]
[1746087961112,1.55282635,95182.0,95181.0,0.283]
[1746087961510,1.55282635,95182.0,95181.0,0.003]
[1746087962803,1.55282635,95182.0,95181.0,0.002]
[1746087963204,0.2100966,95180.0,95179.0,0.16035905]
[1746087963504,1.36673075,95180.0,95179.0,0.16035905]
[1746087964207,1.48873075,95180.0,95179.0,0.16035905]
[1746087964399,1.48873075,95180.0,95179.0,0.16135905]
[1746087965907,1.48873075,95180.0,95179.0,0.001]
[1746087967404,1.27863415,95180.0,95160.0,0.3608]
[1746087967613,1.27863415,95180.0,95148.0,0.26756783]
[1746087967614,1.15663415,95160.0,95156.0,0.210149]
[1746087967813,0.2101452,95158.0,95157.0,1.0346151]
[1746087968111,0.064,95159.0,95158.0,0.2101452]
[1746087968310,0.2409335,95164.0,95163.0,0.2101341]
[1746087968509,0.2101335,95164.0,95163.0,0.4201341]
[1746087969209,0.2101735,95164.0,95163.0,0.5421341]
[1746087970003,0.2403735,95164.0,95163.0,0.5421341]
[1746087970409,0.2403735,95164.0,95163.0,0.5441341]
[1746087971006,0.2403735,95164.0,95163.0,0.5461341]
[1746087971804,0.2403735,95164.0,95163.0,0.336]
[1746087972002,0.2403735,95164.0,95163.0,0.5461341]
[1746087972608,0.2403735,95164.0,95163.0,0.336]
[1746087972803,0.2403735,95164.0,95163.0,0.5461341]
[1746087973512,0.2403735,95164.0,95163.0,0.336]
[1746087973718,0.2403735,95164.0,95163.0,0.5461341]
[1746087974112,0.2403735,95164.0,95163.0,0.336]
[1746087974316,0.2403735,95164.0,95163.0,0.5461341]
[1746087974522,0.2403735,95164.0,95163.0,0.336]
[1746087975118,0.2403735,95164.0,95163.0,0.5461341]
[1746087975310,0.2403735,95164.0,95163.0,0.336]
[1746087975510,1.79020765,95164.0,95163.0,0.336]
[1746087975714,1.89529165,95164.0,95163.0,0.126]
[1746087975905,1.89529165,95164.0,95163.0,0.0221933]
[1746087976110,2.26729165,95164.0,95163.0,0.004]
[1746087976710,2.26729165,95164.0,95163.0,0.002]
[1746087976910,2.26729165,95164.0,95163.0,0.003]
[1746087977514,2.26729165,95164.0,95163.0,0.001]
[1746087977717,2.01729165,95164.0,95163.0,0.003]
[1746087978018,2.01829165,95164.0,95163.0,0.002]
[1746087978221,0.2101606,95151.0,95150.0,0.4158]
[1746087978516,1.72759475,95151.0,95150.0,0.5358]
[1746087979215,1.79099475,95151.0,95150.0,0.5358]
[1746087979422,1.79099475,95151.0,95150.0,0.5378]
[1746087980118,1.91299475,95151.0,95150.0,0.5388]
[1746087980420,1.92322515,95151.0,95150.0,0.5388]
[1746087981008,1.92322515,95151.0,95150.0,0.123]
[1746087981206,1.80122515,95151.0,95150.0,0.123]
[1746087982608,1.90632115,95151.0,95150.0,0.003]
[1746087983114,2.02832115,95151.0,95150.0,0.003]
[1746087983918,2.02832115,95151.0,95150.0,0.002]
[1746087984317,0.2101827,95141.0,95140.0,0.08145538]
[1746087984509,1.36682795,95136.0,95135.0,0.00105113]
[1746087984719,1.36682795,95136.0,95135.0,0.24105113]
[1746087984917,0.2101938,95136.0,95135.0,0.45124713]
[1746087985218,0.2101938,95136.0,95135.0,0.57324713]
[1746087985518,0.2102338,95136.0,95135.0,0.57324713]
[1746087985909,0.2102338,95136.0,95135.0,0.57624713]
[1746087987619,0.2102338,95136.0,95135.0,0.61204713]
[1746087988518,0.0078289,95136.0,95135.0,0.61204713]
[1746087988717,0.2180227,95136.0,95135.0,0.61204713]
[1746087989620,0.0078289,95136.0,95135.0,0.61204713]
[1746087989821,0.2180227,95136.0,95135.0,0.97284713]
[1746087990315,0.0078289,95136.0,95135.0,0.97284713]
[1746087990522,4e-05,95136.0,95135.0,0.97284713]
[1746087991012,0.2101882,95139.0,95138.0,0.2101894]
[1746087991214,0.0525448,95143.0,95140.0,0.0525457]
[1746087991413,0.2627253,95143.0,95142.0,0.2101805]
[1746087991612,0.2627253,95143.0,95142.0,0.4601805]
[1746087991914,0.2627253,95143.0,95142.0,0.5548805]
[1746087992111,0.2627253,95143.0,95142.0,0.6768805]
[1746087992719,0.2101805,95143.0,95142.0,0.6768805]
[1746087992926,0.2101761,95144.0,95143.0,0.2101761]
[1746087993115,0.2101761,95144.0,95143.0,0.5821761]
[1746087993319,0.0525412,95150.0,95147.0,0.0525418]
[1746087993524,0.2101688,95148.0,95147.0,0.5127069]
[1746087993925,0.2101688,95148.0,95147.0,0.5441069]
[1746087994229,0.2102088,95148.0,95147.0,0.6661069]
[1746087994530,4e-05,95148.0,95147.0,0.6661069]
[1746087994725,4e-05,95148.0,95147.0,0.6671069]
[1746087994921,0.2101644,95150.0,95149.0,0.2101651]
[1746087995124,0.21821136,95150.0,95149.0,0.5621651]
[1746087996424,0.21821136,95150.0,95149.0,0.5641651]
[1746087997328,0.21821136,95150.0,95149.0,0.5671651]
[1746087997725,0.31151136,95150.0,95149.0,0.5671651]
[1746087999229,0.31151136,95150.0,95149.0,0.4451651]
[1746088000127,0.31151136,95150.0,95149.0,0.5671651]
[1746088001232,0.31151136,95150.0,95149.0,0.4451651]
[1746088003134,0.31151136,95150.0,95149.0,0.5671651]
[1746088004133,0.28111136,95150.0,95149.0,0.5671651]
[1746088004822,0.28111136,95150.0,95149.0,0.5993651]
[1746088007634,0.28111136,95150.0,95149.0,0.3892]
[1746088007823,0.28111136,95150.0,95149.0,0.5993651]
[1746088008334,0.28111136,95150.0,95149.0,0.4773651]
[1746088009137,0.28111136,95150.0,95149.0,0.5993651]